Cogmind - Beta 17 @@@ ROGUE MODE // 2026.07.19 @ 12:01:17 Player: nnnnsk Result: Destroyed by 5Y-CMW(R) with Subdweller Machine Gun Performance ------------- Evolutions (0) 0 Regions Visited (2) 400 Robots Destroyed (11) 55 Value Destroyed (208) 208 Prototype IDs (0) 0 Alien Tech Used (0) 0 Bonus (0) 0 TOTAL SCORE: 663 Bonus ------- None Cogmind --------- Core Integrity 0/250 Matter 179/300 Energy 250/250 System Corruption 0% Temperature Cool (0) Movement Treading (160) Location -10/Subcaves Parts ------- > --- POWER (1) -------- Ion Engine > --- PROPULSION (2) --- Light Treads Light Treads > --- UTILITY (2) ------ Large Storage Unit Power Shielding > --- WEAPON (2) ------- Salvaging Laser Assault Rifle > --- INVENTORY (15) --- Ion Engine Light Treads Light Treads Light Treads Aluminum Leg Medium Matter Pod (100) Signal Interpreter Terrain Scanner Improved Targeting Computer ECM Suite Salvaging Laser Mining Laser Plasma Cutter Peak State ------------ > --- POWER ------------ Light Ion Engine > --- PROPULSION ------- Light Treads Light Treads > --- UTILITY ---------- Medium Storage Unit ECM Suite > --- WEAPON ----------- Salvaging Laser Salvaging Laser > --- INVENTORY -------- Ion Engine Light Treads Aluminum Leg Aluminum Leg Heat Sink Medium Matter Pod Terrain Scanner Power Shielding Assault Rifle Assault Rifle [Rating: 8] Favorites ----------- Power Ion Engine Engine Ion Engine Propulsion Light Treads Treads Light Treads Utility Power Shielding Device ECM Suite Storage Large Storage Unit Protection Power Shielding Weapon Assault Rifle Energy Gun Salvaging Laser Ballistic Gun Assault Rifle Special Weapon Mining Laser Build | -11 -10 -10 ------- Run | Yrd Mat Sub Slots Evolved . | . . . Power . | . . . Propulsion . | . . . Utility . | . . . Weapon . | . . . Parts Attached 19 | 6 12 1 Power 3 | 1 2 . Engine 3 | 1 2 . Core . | . . . Reactor . | . . . Propulsion 4 | 2 2 . Treads 4 | 2 2 . Leg . | . . . Wheel . | . . . Hover . | . . . Flight . | . . . Utility 5 | 1 4 . Device 1 | . 1 . Storage 3 | 1 2 . Processor . | . . . Hackware . | . . . Protection 1 | . 1 . Artifact . | . . . Weapon 7 | 2 4 1 Energy Gun 4 | 2 2 . Energy Cannon . | . . . Ballistic Gun 2 | . 2 . Ballistic Cannon . | . . . Launcher . | . . . Special Weapon 1 | . . 1 Impact Weapon . | . . . Slashing Weapon . | . . . Piercing Weapon . | . . . Special Melee Weapon . | . . . Unidentified Prototypes . | . . . Parts Lost 2 | . 1 1 Power 1 | . 1 . Propulsion . | . . . Utility . | . . . Weapon 1 | . . 1 Highest Loss Streak 1 | . 1 1 To Critical Strikes . | . . . Average Backups 10 | 3 10 13 Power . | . . 1 Propulsion 3 | 2 3 4 Utility 3 | . 3 5 Weapon 2 | . 2 2 Tool/Special . | . . . Unused Backups 11 | . 4 7 Power . | . . . Propulsion 5 | . 3 2 Utility 5 | . 1 4 Weapon . | . . . Tool/Special 1 | . . 1 Average Slot Usage (%) 99 | . 99 100 Engine 14 | . 14 14 Treads 28 | . 28 28 Device 2 | . 4 . Storage 14 | . 14 14 Protection 11 | . 9 14 Energy Gun 10 | . 13 . Ballistic Gun 17 | . 13 26 Peak Build Rating 8 | 6 8 8 Average Rating 7 | 4 7 8 On Entrance 4 | . 6 8 Avg Prop Armor Cover (%) . | . . . Naked Turns . | . . . Heaviest Build 30 | 12 30 30 Greatest Support 40 | 40 40 40 Greatest Overweight (x) 3 | . 3 . Average Overweight (x) . | . . . Largest Inventory Capacity 15 | 8 15 15 Average Capacity 11 | 7 11 15 Most Carried 14 | 7 14 14 Average Carried 10 | 3 10 13 Final Capacity 15 | 8 15 15 Final Carried 14 | 7 14 13 Class Distribution -------------------- 100% | Mutant Dominant Class ---------------- Mutant | -10/Materials Mutant | -10/Subcaves Resources | -11 -10 -10 ----------- Run | Yrd Mat Sub Matter Collected 627 | 326 301 . Remotely . | . . . Salvage Created 444 | 117 278 49 Parts 18 | 5 11 2 Haulers Intercepted 2 | . 2 . Recyclers Shooed . | . . . Parts Field Recycled . | . . . Retrieved Matter . | . . . Parts Self-Destructed 11 | . . 11 Prevented . | . . . Parts Restored . | . . . Kills | -11 -10 -10 ------- Run | Yrd Mat Sub Combat Hostiles Destroyed 5 | . 4 1 Guns 5 | . 4 1 Classes Destroyed 6 | 3 2 1 Worker 2 | 2 . . Tunneler 1 | 1 . . Hauler 2 | . 2 . Recycler 1 | 1 . . Grunt 4 | . 4 . Subdweller 1 | . . 1 Best Kill Streak 4 | 4 2 1 Combat Bots Only 2 | . 2 1 Max Kills in Single Turn 3 | 3 1 1 Gunslinging . | . . . Exploded . | . . . Melee . | . . . Uniques/NPCs Destroyed . | . . . Combat | -11 -10 -10 -------- Run | Yrd Mat Sub Hostile Shots Fired 60 | . 33 27 Missed 10 | . 3 7 Hits 50 | . 30 20 Projectile 50 | . 30 20 Critical Strikes 5 | . 1 4 Actively Blocked 1 | . 1 . Damage Taken 805 | 21 375 409 Core 260 | . 111 149 Absorbed by Shields . | . . . Redirected to Shielding 29 | . 17 12 Core Remaining (%) 100 | 100 . . Volleys Fired 43 | 3 21 19 Largest 2 | 2 2 2 Hottest 100 | 90 60 100 Shots Fired 84 | 6 42 36 Gun 82 | 6 42 34 Cannon . | . . . Launcher . | . . . Special 2 | . . 2 Kinetic 66 | . 34 32 Thermal 15 | 3 8 4 Explosive . | . . . Electromagnetic 3 | 3 . . Robot Hit Streak 12 | 2 8 12 Robot Miss Streak 4 | 3 4 1 Penetration Max . | . . . Secondary Targets 2 | . 2 . Max Gunslinging Chain 1 | . 1 . Shots Hit Robots 61 | 3 29 29 Core Hits 18 | 4 12 2 Critical Kills . | . . . Critical Parts Destroyed . | . . . Critical Strikes . | . . . Melee Attacks . | . . . Impact . | . . . Slashing . | . . . Piercing . | . . . Sneak Attacks . | . . . Combat Hostiles . | . . . Follow-up Attacks . | . . . Damage Inflicted 616 | 153 354 109 Guns 504 | 41 354 109 Cannons . | . . . Explosions 112 | 112 . . Melee . | . . . Ramming . | . . . Kinetic 427 | . 326 101 Thermal 161 | 125 28 8 Explosive . | . . . Electromagnetic 28 | 28 . . Impact . | . . . Slashing . | . . . Piercing . | . . . Highest Corruption . | . . . Average Corruption . | . . . Corruption Purged . | . . . Corruption Blocked . | . . . Overload Shots . | . . . Overflow Damage . | . . . Projectiles . | . . . Explosions . | . . . Melee . | . . . Knockbacks . | . . . Impact . | . . . Kinetic . | . . . Secondary . | . . . Self-Inflicted Damage 21 | 21 . . Shots 1 | 1 . . Rammed . | . . . Targets Rammed . | . . . Kicked . | . . . Crushed . | . . . Highest Temperature 87 | 84 87 . Average Temperature 25 | 38 18 . Received Heat Transfer 243 | . 216 27 Siege Activations . | . . . Martial Activations . | . . . Shielding Activations . | . . . Robots Disrupted . | . . . Combat Hostiles . | . . . Robots Corrupted . | . . . Combat Hostiles . | . . . Parts Fried . | . . . Impact Corruptions . | . . . Robots Melted . | . . . Combat Hostiles . | . . . Parts Melted . | . . . Heat Transferred 237 | 137 75 25 Parts Sabotaged . | . . . Parts Stolen . | . . . Parts Stripped . | . . . Power Chain Reactions 1 | 1 . . Alert | -11 -10 -10 ------- Run | Yrd Mat Sub Maximum Alert Level . | . . . Low Security (%) 100 | 100 100 . Level 1 . | . . . Level 2 . | . . . Level 3 . | . . . Level 4 . | . . . Level 5 . | . . . High Security . | . . . Max Security . | . . . Peak Influence 99 | 10 99 . Initial 6 | . 6 . Average 12 | 1 13 . Influence Increases 180 | 20 160 . Destroy 0b10 Robot/C 80 | . 80 . Destroy 0b10 Robot/NC 30 | 20 10 . Destroy Leader 24 | . 24 . Successful Hack 31 | . 31 . Lose Combat Pursuer 15 | . 15 . Influence Decreases 180 | 10 170 . Entered New Map 4 | . 4 . Time Decay 176 | 10 166 . Squads Dispatched 2 | . 2 . Investigation 1 | . 1 . Extermination . | . . . Reinforcement 1 | . 1 . Assault . | . . . Garrison . | . . . Intercept . | . . . Searches Triggered . | . . . Construction Impeded . | . . . Haulers Reinforced . | . . . Active Scanning Responses . | . . . Cargo Convoy Interrupts . | . . . Stealth | -11 -10 -10 --------- Run | Yrd Mat Sub Distress Signals 3 | . 3 . Communications Jammed . | . . . Distress Signals . | . . . Times Spotted 7 | . 5 2 Peak Tracking Total 4 | . 4 1 Tactical Retreats 1 | . 1 . Traps | -11 -10 -10 ------- Run | Yrd Mat Sub Traps Triggered 2 | . 2 . Indirectly . | . . . Trap Hack Attempts . | . . . Triggered . | . . . Disarmed . | . . . Reprogrammed . | . . . Reused . | . . . Traps Extracted . | . . . Installed . | . . . Triggered . | . . . Machines | -11 -10 -10 ---------- Run | Yrd Mat Sub Machines Disabled . | . . . Max in Single Turn . | . . . Machines Repaired . | . . . Machines Dismantled . | . . . Machines Sabotaged . | . . . Overloaded Fab Kills . | . . . Hacking | -11 -10 -10 --------- Run | Yrd Mat Sub Machines Accessed 6 | . 6 . Terminals 6 | . 6 . Fabricators . | . . . Repair Stations . | . . . Recycling Units . | . . . Scanalyzers . | . . . Garrison Access . | . . . Total Hacks 25 | . 25 . Successful 16 | . 16 . Failed 9 | . 9 . Catastrophic . | . . . Database Lockouts . | . . . Manual 21 | . 21 . Terminals 25 | . 25 . Fabricators . | . . . Repair Stations . | . . . Recycling Units . | . . . Scanalyzers . | . . . Garrison Access . | . . . Terminal Hacks 9 | . 9 . Part Schematic 1 | . 1 . Robot Analysis 2 | . 2 . Locate Traps 3 | . 3 . Recall Investigation 1 | . 1 . Zone Layout 2 | . 2 . Fabricator Hacks . | . . . Repair Station Hacks . | . . . Recycling Unit Hacks . | . . . Scanalyzer . | . . . Garrison Access Hacks . | . . . Unauthorized Hacks 7 | . 7 . Terminals 7 | . 7 . Botnet 2 | . 2 . Skim 5 | . 5 . Fabricators . | . . . Repair Stations . | . . . Recycling Units . | . . . Scanalyzers . | . . . Garrison Access . | . . . Data Cores Recovered . | . . . Used . | . . . Hacking Detections 6 | . 6 . Full Trace Events . | . . . Feedback Events . | . . . Feedback Blocked . | . . . Robot Schematics Acquired . | . . . Robots Built . | . . . Authchips . | . . . Time . | . . . Total Robot Build Rating . | . . . Part Schematics Acquired 1 | . 1 . Parts Built . | . . . Authchips . | . . . Time . | . . . Total Part Build Rating . | . . . Part Studies Acquired . | . . . Parts Repaired . | . . . Time . | . . . Parts Recycled . | . . . Recycled Matter . | . . . Retrieved Matter . | . . . Retrieved Components . | . . . Parts Scanalyzed . | . . . Part Schematics Acquired . | . . . Parts Damaged . | . . . Bothacking | -11 -10 -10 ------------ Run | Yrd Mat Sub Used RIF Installer . | . . . Robots Hacked . | . . . Non-combat . | . . . Combat . | . . . Robot Hacks Applied . | . . . Relay Couplers Released . | . . . Fabnet Peak Effective % . | . . . Robots Rewired . | . . . Allies Hacked . | . . . Hacks Repelled . | . . . Allies | -11 -10 -10 -------- Run | Yrd Mat Sub Total Allies . | . . . Largest Group . | . . . Highest-Rated Group . | . . . Highest-Rated Ally . | . . . Total Orders . | . . . Ally Attacks . | . . . Total Damage . | . . . Kills . | . . . Allies Corrupted . | . . . Allies Melted . | . . . Intel | -11 -10 -10 ------- Run | Yrd Mat Sub Active Infowar (turns) 1 | . 1 . ECM 1 | . 1 . Robot Analysis Total 2 | . 2 . Derelict Logs Recovered . | . . . Drone Launches . | . . . Drone Recoveries . | . . . Exploration | -11 -10 -10 ------------- Run | Yrd Mat Sub Turns Passed 1783 | 138 1188 457 Spaces Moved 964 | 73 649 242 Core 12 | 11 1 . Treads 952 | 62 648 242 Legs . | . . . Wheels . | . . . Hover . | . . . Flight . | . . . Fastest Speed 50 | 50 160 160 Average Speed 158 | 143 160 160 Slowest Speed 200 | 160 200 160 Overloaded Moves . | . . . Propulsion Burnouts . | . . . Robots Hopped . | . . . Potential Cave-ins . | . . . Cave-ins Triggered . | . . . Exploration Rate (%) 37 | 3 93 15 Regions Visited 2 Branch Regions 1 Pre-discovered Areas 1 | . 1 . Known Exits Taken 1 | . 1 . Unknown Exits Taken 1 | 1 . . Scrap Searched . | . . . Spaces Dug . | . . . Terrain Destroyed . | . . . Melee . | . . . Projectile . | . . . AOE . | . . . Terrain Rammed . | . . . Walls Destroyed . | . . . Machines Disabled . | . . . Actions | -11 -10 -10 --------- Run | Yrd Mat Sub Total 1126 | 97 756 273 Wait 73 | 9 55 9 Move 962 | 72 648 242 Hop . | . . . Pick Up 16 | 7 9 . Fast Attach 13 | 6 7 . Attach 2 | . 1 1 Detach . | . . . Swap 11 | . 9 2 Drop 6 | . 6 . Fire 43 | 3 21 19 Melee . | . . . Ram . | . . . Kick . | . . . Crush . | . . . Escape Stasis . | . . . Rewire . | . . . Trap . | . . . Miscellaneous . | . . . Route ------- -11/Scrapyard -10/Materials (discovered 5 exits: *Mat x3 / *Min / *Sub) -10/Subcaves (discovered 2 exits: *Mat x2) History --------- Turn | Location | Event 6 | -11/Scrapyard | Discovered new exit (range 15) 139 | -11/Scrapyard | Entered Materials 140 | -10/Materials | Met a group of wandering Federalists 307 | -10/Materials | Build established: Mutant 671 | -10/Materials | Discovered new exit (range 4) 737 | -10/Materials | Identified exit to Materials 737 | -10/Materials | Identified exit to Mines 737 | -10/Materials | Identified exit to Subcaves 862 | -10/Materials | Learned 2 Mines zone layouts 945 | -10/Materials | Learned location of Recycling (-8) 972 | -10/Materials | Learned 8 Materials zone layouts 1051 | -10/Materials | Learned location of 1 exit from Storage 1327 | -10/Materials | Entered Subcaves 1328 | -10/Subcaves | Approached by a straggling Scientist 1328 | -10/Subcaves | Identified exit to Materials 1603 | -10/Subcaves | Ambushed by Subdwellers from Twisted Machinery 1621 | -10/Subcaves | Shifting Twisted Machinery released Sub. Power Source 1630 | -10/Subcaves | Shifting Twisted Machinery released Sub. Shrapnel Launcher 1723 | -10/Subcaves | Core integrity fell below 50% 1733 | -10/Subcaves | Disturbed a concealed Subdweller 1741 | -10/Subcaves | Core integrity fell below 20% 1784 | -10/Subcaves | Destroyed by 5Y-CMW(R) with Subdweller Machine Gun Last Messages --------------- separated from was talking about a shortcut back to the UFD." CQ-IGQ(c): "I think it's somewhere east of here" 01573_ A thin wall crumbles away, revealing a door. CQ-IGQ(c): "I think it's somewhere southeast of here" Sub. Power Source falls loose from the Twisted Machinery. Sub. Shrapnel Launcher falls loose from the Twisted Machinery. CQ-IGQ(c): "I think it's somewhere southeast of here" 01729_ DF-7S4(R) destroyed. 01733_ Subatomizers dissect the Sub. Optics. CQ-IGQ(c): "I think it's somewhere southeast of here" 01746_ Subatomizers dissect the Sub. Optics. 01768_ Assault Rifle destroyed. Map ----- +----------------------------------------------------+ | ?????????????????????????????????????????????????? | | ?????????????????????????????????????????????????? | | ?????????????????????????????????????????????????? | | ?????????????????????????????????????????????????? | | ?????????????????????????????????????????????????? | | ?????????????????????????????????????????????????? | | ?????????????????????????????????????????????????? | | ?????????????????????????????????????????????????? | | ?????????????????????????????????????????????????? | | ?????????????????????????????????????????????????? | | ?????????????????????????????????????????????????? | | ?????????????????????????????????????????????????? | | ?????????????????????????????????????????????????? | | ?????????????????????????????????????????????????? | | ?????????????????????????????????????????????????? | | ??????????????????????????????????#?##???????????? | | ????????????????????????????????## ? ???????????? | | ????????????????????????????????# ? ???????????? | | ???????????????????????????????## ? ##??????????? | | ????????????????????????######## #? ???????????? | | ????????????????????????# ## #???????????? | | ????????????????????????# # &%##??????????? | | ????????????????????????#R##<<## ! #??????????? | | ????????????????????????# #<$$"# ##??????????? | | ????????????????????????# <$$"# ##???????????? | | ????????????????????????#@##""## #??#?????????? | | ????????????????????????# #### # ## ##????????? | | ?????????????????????""""# ## #????????? | | ????????????????????""X""######## #????????? | | ????????????????????" "??????# # #????????? | | ????????????????????##"####????# #### #????????? | | ????????????????????## ## ###### ##?? #????????? | | ????????????######?## # # # ##?? #???????? | | ??????"" ##"# # ### #??? #???????? | | ?????]""""" ##### #????#???????? | | ?????"""" * ## #?# < #????????? | | ????? ## # #### # ### #?## #???????? | | ???????#??#????### ##?# #??## # # ""?????? | | ?????????????????## ##? ##???## #### ? ?????? | | ????" ???#?##??## ### ##?????###???? #?????? | | ????# # # ### ##? #?????????????##?????? | | ???????# % ## %% #????????????????????? | | ????????# * ##????????????????????? | | ????????## ### # #?????????????????????? | | ?????????????#?# #######??????????????????? | | ???????????????## ##?????????????????? | | ????????????????##% #?????????????????? | | ?????????????????# #?????????????????? | | ????????????????## #?????????????????? | | ???????????###??# ### #?????????????????? | +----------------------------------------------------+ Best States ------------- Heat Dissipation 25 Energy Generation 10 Energy Capacity 250 Matter Stores 300 Matter Capacity 300 Sight Range 16 Terrain Scan Density 10 Power Shielding 33 Evasion (%) 40 Recoil Reduction 2 Item Schematics ----------------- Sml. Storage Unit | -10/Materials | Hacked Robot Schematics ------------------ None Fabricated ------------ Nothing Repaired ---------- Nothing Studied --------- None Alien Tech Used ----------------- None Achievements -------------- None Challenges ------------ None Game ------ Seed StrikeActiveFacilitator Manual? 0 Play Time 00:16:18 Cumulative 130.1 hours Start 2026.07.19 @ 11:43:09 End 2026.07.19 @ 12:01:17 Sessions 1 Manual Loads 0 Difficulty Rogue Special Mode None Game No. 124 Rogue 117 Adventurer 0 Explorer 7 Win Type - Total 1 Types 1/0/0/0/0/0/0/0/0/0 Lore% 36 Gallery% 47 Achievement% 38 Wizard Run 0 Options --------- Layout 1 ASCII 0 Keyboard 1 Movement Numpad Keybinds 0 Fullscreen 2 Font 32/SmallcapsGlow Map View 50x35 Zoom Use 0% Tactical HUD 1 Map Filters NONE Filters NONE Steam 1 RUN: 12eed5cf-f6f2-4e50-8eee-0b92a1a8df7b